bitfinex/quotes_BTCUSD_20250619
["timestamp","ask_amount","ask_price","bid_price","bid_amount"]
[1750340183655,1.83604087,104780.0,104770.0,0.55737482]
[1750340183889,1.33417904,104780.0,104770.0,0.58027482]
[1750340184120,1.35326546,104780.0,104770.0,0.58027482]
[1750340185026,1.36280899,104780.0,104770.0,0.58027482]
[1750340185916,1.86467064,104780.0,104770.0,0.58027482]
[1750340187705,1.85512702,104780.0,104770.0,0.58027482]
[1750340188806,1.86467064,104780.0,104770.0,0.55737482]
[1750340189670,1.64927551,104780.0,104770.0,0.55737482]
[1750340189892,1.52467064,104780.0,104770.0,0.55737482]
[1750340190328,1.52467064,104780.0,104770.0,0.58107482]
[1750340192304,1.85512702,104780.0,104770.0,0.58107482]
[1750340193206,2.05554676,104780.0,104770.0,0.58107482]
[1750340193430,2.05554749,104780.0,104770.0,0.58107482]
[1750340193653,1.85512766,104780.0,104770.0,0.58107482]
[1750340195139,1.86467137,104780.0,104770.0,0.58107482]
[1750340195410,2.05554749,104780.0,104770.0,0.58107482]
[1750340195848,2.05554822,104780.0,104770.0,0.58107482]
[1750340196076,1.83604097,104780.0,104770.0,0.58107482]
[1750340198925,1.84558459,104780.0,104770.0,0.58107482]
[1750340201533,2.04600442,104780.0,104770.0,0.58107482]
[1750340201736,1.8551283,104780.0,104770.0,0.58107482]
[1750340202847,1.84558459,104780.0,104770.0,0.58107482]
[1750340203762,1.83604097,104780.0,104770.0,0.58107482]
[1750340203974,1.84558459,104780.0,104770.0,0.58107482]
[1750340205520,2.04600442,104780.0,104770.0,0.58107482]
[1750340205735,1.8551283,104780.0,104770.0,0.58107482]
[1750340206197,1.84558459,104780.0,104770.0,0.58107482]
[1750340206664,1.84558459,104780.0,104770.0,0.55737482]
[1750340206665,2.04600442,104780.0,104770.0,0.55737482]
[1750340207141,2.05554822,104780.0,104770.0,0.31357326]
[1750340207327,2.05956134,104780.0,104770.0,0.37070348]
[1750340208004,2.03646134,104780.0,104770.0,0.37070348]
[1750340208284,2.02691772,104780.0,104770.0,0.16072]
[1750340208520,0.20043895,104770.0,104760.0,0.24803757]
[1750340208703,2.01739304,104770.0,104760.0,0.18824757]
[1750340208956,2.04129304,104770.0,104760.0,0.356178]
[1750340209179,2.04129304,104770.0,104760.0,0.36572326]
[1750340209871,2.01739304,104770.0,104760.0,0.37526843]
[1750340210553,2.01739304,104770.0,104760.0,0.37826843]
[1750340211313,1.53461972,104770.0,104760.0,0.38026843]
[1750340211565,1.54416416,104770.0,104760.0,0.38981351]
[1750340211820,1.34372467,104770.0,104760.0,0.4230585]
[1750340212047,1.3532692,104770.0,104760.0,0.4230585]
[1750340213432,1.36281382,104770.0,104760.0,0.4230585]
[1750340213865,1.55370815,104770.0,104760.0,0.4633385]
[1750340214363,1.56325286,104770.0,104760.0,0.4633385]
[1750340214570,1.55370869,104770.0,104760.0,0.45379351]
[1750340214830,1.55370869,104770.0,104760.0,0.44424843]
[1750340215115,1.54416425,104770.0,104760.0,0.42054843]
[1750340216272,1.53461972,104770.0,104760.0,0.205458]
[1750340216496,0.54045818,104760.0,104750.0,0.25037501]
[1750340216720,2.02695735,104760.0,104750.0,0.49986011]
[1750340217372,2.03700874,104760.0,104740.0,0.24461367]
[1750340217630,1.55375143,104750.0,104740.0,0.38665393]
[1750340217836,1.55375143,104750.0,104740.0,0.54233393]
[1750340218053,1.55375143,104750.0,104740.0,0.38665411]
[1750340218282,1.55375143,104750.0,104740.0,0.55188055]
[1750340219151,1.54420562,104750.0,104740.0,0.53278666]
[1750340219396,1.54420562,104750.0,104740.0,0.53378666]
[1750340219617,1.53465963,104750.0,104740.0,0.52423958]
[1750340219860,1.53465963,104750.0,104740.0,0.51469241]
[1750340220099,1.52511337,104750.0,104740.0,0.51469241]
[1750340220547,2.0174314,104750.0,104740.0,0.023]
[1750340220771,2.0624314,104750.0,104740.0,0.15682]
[1750340221249,2.0624314,104750.0,104740.0,0.0011]
[1750340221492,0.56319646,104740.0,104730.0,0.0001]
[1750340221744,0.58591542,104730.0,104720.0,0.0001]
[1750340222072,0.58593457,104720.0,104710.0,0.00959894]
[1750340222259,0.21012342,104700.0,104690.0,0.2941985]
[1750340222482,1.68707751,104700.0,104690.0,0.31740588]
[1750340222705,1.68707751,104700.0,104690.0,0.52295761]
[1750340222922,1.18705405,104700.0,104690.0,0.52295761]
[1750340223187,1.18705405,104700.0,104690.0,0.33660925]
[1750340223411,1.18705405,104700.0,104690.0,0.53264925]
[1750340223637,1.18705405,104700.0,104690.0,0.50874925]
[1750340223865,1.03441372,104700.0,104690.0,0.50874925]
[1750340224056,1.03441336,104700.0,104690.0,0.51830016]
[1750340224277,1.23498623,104700.0,104690.0,0.49919724]
[1750340224512,1.23498623,104700.0,104690.0,0.35173656]
[1750340224734,1.23498623,104700.0,104690.0,0.50999531]
[1750340224957,1.22543568,104700.0,104690.0,0.51954704]
[1750340225181,1.23043568,104700.0,104690.0,0.52909868]
[1750340225394,1.04396354,104700.0,104690.0,0.53865005]
[1750340225616,1.01631199,104700.0,104690.0,0.56175005]
[1750340225874,1.02586235,104700.0,104690.0,0.58455005]
[1750340226323,1.03541281,104700.0,104690.0,0.58455005]
[1750340226545,1.04496326,104700.0,104690.0,0.44337112]
[1750340226762,1.05451417,104700.0,104690.0,0.44337112]
[1750340226981,1.25508722,104700.0,104690.0,0.43381975]
[1750340227246,1.57598659,104700.0,104690.0,0.21867638]
[1750340227475,1.57598659,104700.0,104690.0,0.22822839]
[1750340227476,1.53760514,104700.0,104690.0,0.22822839]
[1750340227698,1.63287499,104700.0,104690.0,0.22822839]
[1750340227918,1.55597161,104700.0,104690.0,0.38426839]
[1750340228135,1.55597161,104700.0,104690.0,0.39382021]
[1750340228590,1.55597161,104700.0,104690.0,0.40337194]
[1750340228815,1.55597161,104700.0,104690.0,0.41292358]
[1750340229241,1.55597161,104700.0,104690.0,0.41286801]
[1750340229453,1.55597161,104700.0,104690.0,0.25682801]
[1750340229690,1.36494938,104700.0,104690.0,0.25682737]
[1750340229940,1.37450029,104700.0,104690.0,0.41282737]
[1750340230158,1.59507325,104700.0,104690.0,0.41282737]
[1750340230383,1.60462389,104700.0,104690.0,0.403276]
[1750340230611,1.57597152,104700.0,104690.0,0.37462081]
[1750340230833,1.56642052,104700.0,104690.0,0.2090689]
[1750340231069,1.56642052,104700.0,104690.0,0.37478091]
[1750340231511,1.56642052,104700.0,104690.0,0.01802869]
[1750340231734,1.61082052,104700.0,104690.0,0.17418869]
[1750340231964,1.70609037,104700.0,104690.0,0.1564333]
[1750340232176,1.70609037,104700.0,104690.0,0.17417931]
[1750340232400,0.53104021,104690.0,104680.0,0.2505993]
[1750340232628,0.54061129,104680.0,104670.0,0.20054875]
[1750340232850,1.52709247,104680.0,104670.0,0.15652]
[1750340233068,1.52709247,104680.0,104660.0,0.29355732]
[1750340233069,0.02866003,104670.0,104660.0,0.29355732]
[1750340233286,0.02866003,104670.0,104660.0,0.38883625]
[1750340233287,0.98648118,104670.0,104660.0,0.38883625]
[1750340233573,1.00058747,104670.0,104660.0,0.56797625]
[1750340233787,1.01514084,104670.0,104660.0,0.57684719]
[1750340234011,0.99603428,104670.0,104660.0,0.57684719]
[1750340234235,0.368704,104680.0,104660.0,0.57684719]
[1750340234454,0.35910447,104680.0,104670.0,0.36250427]
[1750340234676,1.56530213,104680.0,104670.0,0.36898716]
[1750340234945,1.55575003,104680.0,104670.0,0.51970212]
[1750340235145,1.55519775,104680.0,104670.0,0.33693397]
[1750340235362,1.5456452,104680.0,104670.0,0.42604841]
[1750340235609,1.5366452,104680.0,104670.0,0.4356016]
[1750340235830,1.5386452,104680.0,104670.0,0.4581016]
[1750340236303,1.5386452,104680.0,104670.0,0.44854841]
[1750340236546,1.5396452,104680.0,104670.0,0.4581016]
[1750340236784,1.5396452,104680.0,104670.0,0.45810169]
[1750340237718,1.5396452,104680.0,104670.0,0.46765488]
[1750340238192,1.5396452,104680.0,104670.0,0.45810169]
[1750340238431,1.5396452,104680.0,104670.0,0.44854841]
[1750340238922,1.5396452,104680.0,104670.0,0.43903504]
[1750340239359,1.5396452,104680.0,104670.0,0.45814188]
[1750340240097,1.5396452,104680.0,104670.0,0.46769516]
[1750340240311,1.35813893,104680.0,104670.0,0.49129452]
[1750340240522,1.35813893,104680.0,104670.0,0.49129552]
[1750340240737,1.34858565,104680.0,104670.0,0.58657445]
[1750340240950,0.85534488,104680.0,104670.0,0.58657445]
[1750340241175,0.88400217,104680.0,104670.0,0.58657445]
[1750340241418,0.88400199,104680.0,104670.0,0.58657445]
[1750340241635,0.54400199,104680.0,104670.0,0.58657445]
[1750340241858,0.88400253,104680.0,104670.0,0.58657445]
[1750340242546,0.87445034,104680.0,104670.0,0.58657445]
[1750340242757,1.36769093,104680.0,104670.0,0.58657445]
[1750340243389,1.35813829,104680.0,104670.0,0.58658147]
[1750340243592,1.36769093,104680.0,104670.0,0.58658147]
[1750340243828,1.36769093,104680.0,104670.0,0.543875]
[1750340244044,1.37724385,104680.0,104670.0,0.543875]
[1750340244255,1.55874939,104680.0,104670.0,0.56298147]
[1750340244476,1.56830231,104680.0,104670.0,0.59361107]
[1750340244682,1.56830231,104680.0,104670.0,0.58405779]
[1750340244900,1.55875003,104680.0,104670.0,0.58405779]
[1750340245144,1.21875003,104680.0,104670.0,0.59361107]
[1750340245359,1.55875003,104680.0,104670.0,0.58405779]
[1750340245983,1.54919766,104680.0,104670.0,0.58405779]
[1750340246209,1.5396452,104680.0,104670.0,0.55521504]
[1750340246468,1.5396452,104680.0,104670.0,0.54236887]
[1750340246698,1.53009256,104680.0,104670.0,0.34173833]
[1750340247138,1.53009256,104680.0,104670.0,0.54236878]
[1750340247360,1.52053964,104680.0,104670.0,0.34173833]
[1750340247840,1.52053964,104680.0,104670.0,0.54236887]
[1750340248057,1.52053964,104680.0,104670.0,0.55192252]
[1750340248286,1.52053964,104680.0,104670.0,0.54236887]
[1750340249150,1.52053964,104680.0,104670.0,0.54238503]
[1750340249357,1.52053964,104680.0,104670.0,0.56149224]
[1750340249779,0.53405846,104680.0,104670.0,0.56149224]
[1750340250208,1.52053964,104680.0,104670.0,0.55193868]
[1750340250446,1.51121768,104680.0,104670.0,0.55193868]
[1750340250663,1.51121768,104680.0,104670.0,0.54238503]
[1750340250877,1.51121768,104680.0,104670.0,0.55193868]
[1750340252063,1.51121768,104680.0,104670.0,0.56151786]
[1750340252523,1.51121768,104680.0,104670.0,0.58531786]
[1750340253000,1.52077042,104680.0,104670.0,0.5948765]
[1750340254054,1.35513847,104680.0,104670.0,0.60442914]
[1750340254277,1.37424404,104680.0,104670.0,0.60442914]
[1750340254490,1.56530323,104680.0,104670.0,0.60442914]
[1750340254701,1.56530323,104680.0,104670.0,0.59487595]
[1750340254909,1.55575077,104680.0,104670.0,0.59487595]
[1750340255406,1.54619813,104680.0,104670.0,0.5757693]
[1750340255617,1.54619813,104680.0,104670.0,0.57587204]
[1750340255821,1.54619813,104680.0,104670.0,0.56693186]
[1750340256260,1.54619813,104680.0,104670.0,0.54904285]
[1750340256476,1.54619813,104680.0,104670.0,0.56693204]
[1750340257143,1.53664539,104680.0,104670.0,0.55737848]
[1750340257356,1.52709256,104680.0,104670.0,0.53357848]
[1750340257795,1.52709256,104680.0,104670.0,0.54313897]
[1750340258667,1.52709256,104680.0,104670.0,0.57429225]
[1750340259091,1.52709256,104680.0,104670.0,0.56473897]
[1750340260866,1.52709256,104680.0,104670.0,0.5338255]
[1750340261087,1.52709256,104680.0,104670.0,0.55293234]
[1750340261304,1.54619712,104680.0,104670.0,0.37831253]
[1750340261520,1.56530241,104680.0,104670.0,0.59493918]
[1750340261736,1.36469103,104680.0,104670.0,0.59493872]
[1750340262003,0.35910447,104680.0,104670.0,0.59493872]
[1750340262222,0.85234506,104680.0,104670.0,0.59493872]
[1750340262896,0.34,104680.0,104670.0,0.59493872]
[1750340263125,0.83324059,104680.0,104670.0,0.59493872]
[1750340263575,0.83324059,104680.0,104670.0,0.59495138]
[1750340264498,0.83324059,104680.0,104670.0,0.60949223]
[1750340265409,0.83324059,104680.0,104670.0,0.59158336]
[1750340267014,0.34,104680.0,104670.0,0.59158336]
[1750340267240,0.83324059,104680.0,104670.0,0.59158336]
[1750340268041,0.83324059,104680.0,104670.0,0.46073028]
[1750340268254,0.83324059,104680.0,104670.0,0.55600921]
[1750340269820,0.83324059,104680.0,104670.0,0.55608921]
[1750340271187,0.84279269,104680.0,104670.0,0.54154836]
[1750340271407,1.33603328,104680.0,104670.0,0.56126836]
[1750340271631,0.83324059,104680.0,104670.0,0.56126836]
[1750340271854,0.84279269,104680.0,104670.0,0.56126836]
[1750340272554,0.85234497,104680.0,104670.0,0.56126836]
[1750340272777,0.35910438,104680.0,104670.0,0.56126836]
[1750340272996,0.84279269,104680.0,104670.0,0.56126836]
[1750340274151,0.83324059,104680.0,104670.0,0.56126836]
[1750340276197,0.84279278,104680.0,104670.0,0.56126836]
[1750340276857,0.85234515,104680.0,104670.0,0.56126836]
[1750340277089,1.34558565,104680.0,104670.0,0.53930836]
[1750340277359,1.35513811,104680.0,104670.0,0.53930836]
[1750340277599,1.35513811,104680.0,104670.0,0.34146836]
[1750340277825,1.35513811,104680.0,104670.0,0.50685508]
[1750340278055,1.34558565,104680.0,104670.0,0.50685508]
[1750340278725,1.33603337,104680.0,104670.0,0.50685508]
[1750340278934,1.33603337,104680.0,104670.0,0.52775508]
[1750340278935,1.34558574,104680.0,104670.0,0.52775508]
[1750340279594,0.35910456,104680.0,104670.0,0.52775508]
[1750340279866,1.34558574,104680.0,104670.0,0.52775508]
[1750340280085,1.34558565,104680.0,104670.0,0.52775508]
[1750340280534,1.35513811,104680.0,104670.0,0.52775508]
[1750340280970,1.35513811,104680.0,104670.0,0.50717508]
[1750340281679,1.36469066,104680.0,104670.0,0.50717508]
[1750340283085,1.35513811,104680.0,104670.0,0.50717508]
[1750340283539,1.38549085,104680.0,104670.0,0.50709508]
[1750340284608,0.38945693,104680.0,104670.0,0.50709508]
[1750340284817,1.04549066,104680.0,104670.0,0.50709508]
[1750340285317,1.0550434,104680.0,104670.0,0.50709508]
[1750340285461,1.04549066,104680.0,104670.0,0.50709508]
[1750340286256,1.0550434,104680.0,104670.0,0.50709508]
[1750340286496,1.04549066,104680.0,104670.0,0.50709508]
[1750340286683,1.58819775,104680.0,104670.0,0.19107671]
[1750340286904,0.25973702,104670.0,104660.0,0.00215584]
[1750340287120,0.5894123,104660.0,104650.0,0.49949257]
[1750340287341,1.10255289,104660.0,104650.0,0.74261648]
[1750340287551,0.90190318,104660.0,104650.0,0.75217168]
[1750340287767,0.86190309,104660.0,104650.0,0.7617267]
[1750340288203,0.87145765,104660.0,104650.0,0.7617267]
[1750340288422,1.07210736,104660.0,104650.0,0.76172679]
[1750340289480,1.06255344,104660.0,104650.0,0.75217168]
[1750340289943,0.87145847,104660.0,104650.0,0.76184615]
[1750340290174,0.86190373,104660.0,104650.0,0.76184615]
[1750340290370,1.06255344,104660.0,104650.0,0.76184615]
[1750340291123,1.06255344,104660.0,104650.0,0.75229113]
[1750340291557,1.06255344,104660.0,104650.0,0.74273602]
[1750340291776,1.05299924,104660.0,104650.0,0.73318082]
[1750340292086,1.04344486,104660.0,104650.0,0.73318082]
[1750340292459,1.06344486,104660.0,104650.0,0.73318119]
[1750340292737,1.0538903,104660.0,104650.0,0.73318119]
[1750340292915,1.0538903,104660.0,104650.0,0.74273648]
[1750340293139,1.0538903,104660.0,104650.0,0.51329648]
[1750340293332,1.0538903,104660.0,104650.0,0.50374119]
[1750340293568,1.0538903,104660.0,104650.0,0.51329648]
[1750340293712,1.0338903,104660.0,104650.0,0.50378138]
[1750340294300,1.04583556,104660.0,104650.0,0.50378138]
[1750340294495,1.04583556,104660.0,104650.0,0.51333685]
[1750340294702,1.04583556,104660.0,104650.0,0.50378138]
[1750340295328,1.04583556,104660.0,104650.0,0.49422581]
[1750340295541,1.51757615,104660.0,104650.0,0.19884]
[1750340295743,0.55024399,104640.0,104630.0,0.00119814]
[1750340296114,1.56936906,104640.0,104630.0,0.15867814]
[1750340296342,2.09191943,104640.0,104630.0,0.00119814]
[1750340296570,1.44582046,104640.0,104630.0,0.3498279]
[1750340296800,1.59649865,104640.0,104630.0,0.35938538]
[1750340297017,1.58694254,104640.0,104630.0,0.20190538]
[1750340297230,0.57401323,104650.0,104630.0,0.31629882]
[1750340297444,1.35514952,104640.0,104630.0,0.48333566]
[1750340297659,1.35614943,104640.0,104630.0,0.48333566]
[1750340297899,1.34659313,104640.0,104630.0,0.48333566]
[1750340298115,1.35814943,104640.0,104630.0,0.48333566]
[1750340298329,1.34559313,104640.0,104630.0,0.32585566]
[1750340298565,1.34559295,104640.0,104630.0,0.48333566]
[1750340298788,1.35514906,104640.0,104630.0,0.51881746]
[1750340298990,1.32648118,104640.0,104630.0,0.50473566]
[1750340299214,1.33603693,104640.0,104630.0,0.52463566]
[1750340302331,0.35910739,104670.0,104660.0,0.52620238]
[1750340302532,0.35910739,104670.0,104660.0,0.50440238]
[1750340302745,0.01910739,104670.0,104660.0,0.50440238]
[1750340302952,1.00558857,104670.0,104660.0,0.30548238]
[1750340303172,1.34558839,104670.0,104660.0,0.50456238]
[1750340303390,1.34558802,104670.0,104660.0,0.50456238]
[1750340303598,1.34558802,104670.0,104660.0,0.54004418]
[1750340303800,1.34558802,104670.0,104660.0,0.50456238]
[1750340304013,1.35514167,104670.0,104660.0,0.50456238]
[1750340304435,1.35514121,104670.0,104660.0,0.50456238]
[1750340304651,1.35814121,104670.0,104660.0,0.50456238]
[1750340305063,1.35814112,104670.0,104660.0,0.50456238]
[1750340305475,1.33903446,104670.0,104660.0,0.50456238]
[1750340305683,1.32948118,104670.0,104660.0,0.54746238]
[1750340306747,0.49624059,104670.0,104660.0,0.54746238]
[1750340307197,0.83524059,104670.0,104660.0,0.54746238]
[1750340307625,0.83324059,104670.0,104660.0,0.54746238]
[1750340307839,1.32648118,104670.0,104660.0,0.54746238]
[1750340308316,0.83324059,104670.0,104660.0,0.54746238]
[1750340308991,0.83324059,104670.0,104660.0,0.56200323]
[1750340309213,1.32648118,104670.0,104660.0,0.56200323]
[1750340310333,1.32648118,104670.0,104660.0,0.56400323]
[1750340311038,1.32648118,104670.0,104660.0,0.56600323]
[1750340311446,1.32648118,104670.0,104660.0,0.36692323]
[1750340311661,1.32648118,104670.0,104660.0,0.56588323]
[1750340311898,1.32648118,104670.0,104660.0,0.60136503]
[1750340312141,1.33603419,104670.0,104660.0,0.36692323]
[1750340312363,1.33603419,104670.0,104660.0,0.35238238]
[1750340312579,1.33603419,104670.0,104660.0,0.55146238]
[1750340313019,1.34558738,104670.0,104660.0,0.35238238]
[1750340313237,1.34558738,104670.0,104660.0,0.55146238]
[1750340313681,1.34558738,104670.0,104660.0,0.35238238]
[1750340313903,1.34558738,104670.0,104660.0,0.34113703]
[1750340313904,1.36469431,104670.0,104660.0,0.34113703]
[1750340314126,1.58821865,104670.0,104660.0,0.004]
[1750340314353,0.01911031,104650.0,104640.0,0.49060545]
[1750340314579,1.35514696,104650.0,104640.0,0.75316031]
[1750340315242,1.35514696,104650.0,104640.0,0.55412031]
[1750340315459,1.35514696,104650.0,104640.0,0.75312031]
[1750340315951,1.35514696,104650.0,104640.0,0.55412031]
[1750340315952,1.35814696,104650.0,104640.0,0.55412031]
[1750340316203,1.35514696,104650.0,104640.0,0.75312031]
[1750340317317,1.35514696,104650.0,104640.0,0.55412031]
[1750340317550,1.56537142,104650.0,104640.0,0.74452438]
[1750340317755,1.5558164,104650.0,104640.0,0.74452438]
[1750340317979,1.55740564,104650.0,104640.0,0.13759893]
[1750340318201,1.58150564,104650.0,104640.0,0.29519893]
[1750340318413,1.58150564,104650.0,104640.0,0.4958869]
[1750340318708,1.57850564,104650.0,104640.0,0.4958869]
[1750340319124,1.57850564,104650.0,104640.0,0.4968869]
[1750340320022,1.57850564,104650.0,104640.0,0.50644329]
[1750340320237,1.57850564,104650.0,104640.0,0.51599959]
[1750340320454,1.55740564,104650.0,104640.0,0.52555579]
[1750340320902,1.55740564,104650.0,104640.0,0.5351119]
[1750340321555,1.55740564,104650.0,104640.0,0.52555579]
[1750340322393,1.55740564,104650.0,104640.0,0.5351119]
[1750340323283,1.55740564,104650.0,104640.0,0.52555579]
[1750340323768,1.36629149,104650.0,104640.0,0.52555579]
[1750340323983,1.3455914,104650.0,104640.0,0.53511172]
[1750340324200,1.3360362,104650.0,104640.0,0.53511172]
[1750340324412,0.84279561,104650.0,104640.0,0.53511172]
[1750340324625,0.84279552,104650.0,104640.0,0.53511172]
[1750340324829,0.84279543,104650.0,104640.0,0.53511172]
[1750340325250,0.85235045,104650.0,104640.0,0.53511172]
[1750340325692,0.34,104650.0,104640.0,0.53511172]
[1750340325913,0.51699424,104670.0,104650.0,0.25262354]
[1750340326151,0.50279369,104670.0,104660.0,0.38675248]
[1750340326389,0.86190016,104670.0,104660.0,0.38675248]
[1750340326592,0.3877665,104670.0,104660.0,0.38675248]
[1750340326806,0.01910629,104670.0,104660.0,0.38675248]
[1750340327030,0.60231694,104680.0,104670.0,0.21018392]
[1750340327243,1.56969329,104680.0,104670.0,0.20063045]
[1750340327457,1.56969329,104680.0,104670.0,0.2101841]
[1750340327884,1.18709329,104680.0,104670.0,0.2101841]
[1750340328103,1.18709329,104680.0,104670.0,0.21973747]
[1750340328324,1.54859329,104680.0,104670.0,0.21973766]
[1750340328536,1.57489329,104680.0,104670.0,0.21973766]
[1750340328744,1.56534065,104680.0,104670.0,0.21973766]
[1750340329645,1.56834065,104680.0,104670.0,0.21973766]
[1750340329935,1.56834065,104680.0,104670.0,0.3677441]
[1750340330369,1.56834065,104680.0,104670.0,0.35819045]
[1750340330810,1.56834065,104680.0,104670.0,0.34863671]
[1750340331747,0.54063036,104670.0,104660.0,0.35631695]
[1750340331952,1.36828857,104670.0,104660.0,0.52335105]
[1750340332166,1.37784213,104670.0,104660.0,0.32459105]
[1750340332377,1.37784213,104670.0,104660.0,0.48203105]
[1750340333211,1.37884213,104670.0,104660.0,0.48203105]
[1750340333639,1.3883956,104670.0,104660.0,0.48203105]
[1750340333839,1.41844897,104670.0,104660.0,0.46292275]
[1750340334113,1.41844897,104670.0,104660.0,0.47247695]
[1750340334550,1.60297231,104670.0,104660.0,0.47247695]
[1750340334767,1.58247231,104670.0,104660.0,0.47247695]
[1750340335430,1.57291884,104670.0,104660.0,0.46292275]
[1750340336314,1.59511884,104670.0,104660.0,0.46292275]
[1750340336528,1.58556528,104670.0,104660.0,0.45324855]
[1750340336970,1.57601163,104670.0,104660.0,0.19109497]
[1750340337178,1.56645789,104670.0,104660.0,0.15732]
[1750340337388,1.56645789,104670.0,104660.0,0.34841497]
[1750340337605,1.56645789,104670.0,104660.0,0.15732]
[1750340337826,0.01910903,104660.0,104650.0,0.21022372]
[1750340338044,0.00955502,104650.0,104640.0,0.26918447]
[1750340338258,0.50279561,104650.0,104640.0,0.5630234]
[1750340338478,0.50279552,104650.0,104640.0,0.5630234]
[1750340338694,0.50279561,104650.0,104640.0,0.5630234]
[1750340339173,0.50279552,104650.0,104640.0,0.39120255]
[1750340339389,1.01514678,104650.0,104640.0,0.50412255]
[1750340339820,1.55581558,104650.0,104640.0,0.34780255]
[1750340340027,1.55581558,104650.0,104640.0,0.5051631]
[1750340340241,1.55581558,104650.0,104640.0,0.51471921]
[1750340340461,1.36470235,104650.0,104640.0,0.52427514]
[1750340340683,1.56537124,104650.0,104640.0,0.52427514]
[1750340340911,1.55581631,104650.0,104640.0,0.51471921]
[1750340341789,1.59901631,104650.0,104640.0,0.51471921]
[1750340342002,1.58946111,104650.0,104640.0,0.5051631]
[1750340342226,1.58946111,104650.0,104640.0,0.50616329]
[1750340342457,1.57990564,104650.0,104640.0,0.34880329]
[1750340342713,1.57990564,104650.0,104640.0,0.30752329]
[1750340342939,1.57990564,104650.0,104640.0,0.002]
[1750340343167,1.57035007,104650.0,104640.0,0.002]
[1750340343397,1.36968118,104650.0,104640.0,0.37916047]
[1750340343633,1.58946047,104650.0,104640.0,0.37916047]
[1750340343888,1.59901531,104650.0,104640.0,0.37916047]
[1750340344115,0.83324059,104650.0,104640.0,0.53485135]
[1750340344586,0.84279552,104650.0,104640.0,0.53485135]
[1750340345058,0.83324059,104650.0,104640.0,0.53485135]
[1750340346066,0.83324059,104650.0,104640.0,0.5493922]
[1750340346292,0.83324059,104650.0,104640.0,0.584874]
[1750340346530,0.83324059,104650.0,104640.0,0.5493922]
[1750340349016,0.34,104650.0,104640.0,0.6993922]
[1750340349506,0.83324059,104650.0,104640.0,0.6993922]
[1750340351297,0.49324059,104650.0,104640.0,0.6993922]
[1750340351733,0.34,104650.0,104640.0,0.6993922]
[1750340351942,0.49324059,104670.0,104660.0,0.2197581]
[1750340352159,1.32648118,104670.0,104660.0,0.53467703]
[1750340352783,0.83324059,104670.0,104660.0,0.55637703]
[1750340353228,1.32748118,104670.0,104660.0,0.55637703]
[1750340353439,1.33048118,104670.0,104660.0,0.55637703]
[1750340353684,0.83724059,104670.0,104660.0,0.57091788]
[1750340353892,0.49724059,104670.0,104660.0,0.57091788]
[1750340355444,0.99048118,104670.0,104660.0,0.31503703]
[1750340355683,0.99048118,104670.0,104660.0,0.51375703]
[1750340356099,0.99048118,104670.0,104660.0,0.55545703]
[1750340360450,1.00003437,104670.0,104660.0,0.55545703]
[1750340360934,0.99048118,104670.0,104660.0,0.55545703]
[1750340361369,1.34003428,104670.0,104660.0,0.55545703]
[1750340361788,1.34958756,104670.0,104660.0,0.55545703]
[1750340362003,1.34003428,104670.0,104660.0,0.55545703]
[1750340362274,0.344,104670.0,104660.0,0.55545703]
[1750340362487,1.33048118,104670.0,104660.0,0.53485703]
[1750340362916,1.33048118,104670.0,104660.0,0.55505703]
[1750340364706,1.32948118,104670.0,104660.0,0.56959788]
[1750340364930,0.83624059,104670.0,104660.0,0.56959788]
[1750340365139,1.32648118,104670.0,104660.0,0.56959788]
[1750340365564,1.33703419,104670.0,104660.0,0.35633703]
[1750340365777,1.34658747,104670.0,104660.0,0.51335703]
[1750340365988,1.33703419,104670.0,104660.0,0.51335703]
[1750340366208,1.34658738,104670.0,104660.0,0.51335703]
[1750340366825,1.00658738,104670.0,104660.0,0.51335703]
[1750340367035,0.99703419,104670.0,104660.0,0.51335703]
[1750340367461,0.98748118,104670.0,104660.0,0.53445703]
[1750340367669,0.99703419,104670.0,104660.0,0.53445703]
[1750340367916,0.98748118,104670.0,104660.0,0.53445703]
[1750340369091,0.98748118,104670.0,104660.0,0.55505703]
[1750340369345,0.001,104670.0,104660.0,0.55505703]
[1750340369564,0.98748118,104670.0,104660.0,0.55505703]
[1750340371295,0.98748118,104670.0,104660.0,0.55479549]
[1750340371560,0.98748118,104670.0,104660.0,0.53419549]
[1750340371970,0.001,104670.0,104660.0,0.53419549]
[1750340372407,0.98748118,104670.0,104660.0,0.51309549]
[1750340373467,1.00808118,104670.0,104660.0,0.31477549]
[1750340373682,1.02718738,104670.0,104660.0,0.51297549]
[1750340373898,1.01763419,104670.0,104660.0,0.51297549]
[1750340374522,0.99703419,104670.0,104660.0,0.51297549]
[1750340374967,1.00658738,104670.0,104660.0,0.51297549]
[1750340375593,1.00658729,104670.0,104660.0,0.51297549]
[1750340375803,0.98748118,104670.0,104660.0,0.51297549]
[1750340376017,0.98748118,104670.0,104660.0,0.54845729]
[1750340376268,0.99703419,104670.0,104660.0,0.51297549]
[1750340376910,0.98748118,104670.0,104660.0,0.51297549]
[1750340377127,0.99703419,104670.0,104660.0,0.51297549]
[1750340378640,0.98748118,104670.0,104660.0,0.51297549]
[1750340379913,0.98748118,104670.0,104660.0,0.53327549]
[1750340382310,0.49424059,104670.0,104660.0,0.53327549]
[1750340383411,0.001,104670.0,104660.0,0.51297549]
[1750340383604,0.98748118,104670.0,104660.0,0.51297549]
[1750340383824,0.99703428,104670.0,104660.0,0.51297549]
[1750340384060,0.98748118,104670.0,104660.0,0.51297549]
[1750340384978,0.99703419,104670.0,104660.0,0.51297549]
[1750340385896,1.03584085,104670.0,104660.0,0.35623713]
[1750340386114,1.05634085,104670.0,104660.0,0.52251123]
[1750340386363,1.0658945,104670.0,104660.0,0.52251123]
[1750340387518,1.05634085,104670.0,104660.0,0.52251123]
[1750340387782,1.03584085,104670.0,104660.0,0.52251123]
[1750340387997,1.05654085,104670.0,104660.0,0.52251123]
[1750340388437,1.36628738,104670.0,104660.0,0.52251123]
[1750340388649,1.37584075,104670.0,104660.0,0.52251123]
[1750340388856,1.37584066,104670.0,104660.0,0.52251123]
[1750340389295,1.36628738,104670.0,104660.0,0.52251123]
[1750340389729,1.37584066,104670.0,104660.0,0.52251123]
[1750340390160,1.36628738,104670.0,104660.0,0.52251123]
[1750340390594,1.37584075,104670.0,104660.0,0.52251123]
[1750340392337,1.36628738,104670.0,104660.0,0.52251123]
[1750340392780,1.40749422,104670.0,104660.0,0.52263123]
[1750340392999,1.40749422,104670.0,104660.0,0.52223123]
[1750340393250,1.59857093,104670.0,104660.0,0.2293123]
[1750340393462,1.41704796,104670.0,104660.0,0.4269523]
[1750340395567,1.60812549,104670.0,104660.0,0.4269523]
[1750340395775,1.41704878,104670.0,104660.0,0.4269523]
[1750340395981,1.40749495,104670.0,104660.0,0.4269523]
[1750340396404,1.40749486,104670.0,104660.0,0.4269523]
[1750340397363,1.60812531,104670.0,104660.0,0.4269523]
[1750340397566,1.4170486,104670.0,104660.0,0.4269523]
[1750340398714,1.40749486,104670.0,104660.0,0.4269523]
[1750340400262,1.60812531,104670.0,104660.0,0.4269523]
[1750340400521,1.40749486,104670.0,104660.0,0.4269523]
[1750340401177,1.59857157,104670.0,104660.0,0.39828962]